fUSD/lending_fUSD_20240103
["ID","MTS","AMOUNT","RATE_DAILY","PERIOD"]
[309972709,1704244256109,-500.0,0.00032876,2]
[309972710,1704244256118,-500.0,0.00032876,2]
[309972711,1704244256127,-580.0,0.00032876,2]
[309972712,1704244256136,-500.0,0.00032876,2]
[309972713,1704244256145,-500.0,0.00032876,2]
[309972714,1704244256155,-228.43,0.00032876,2]
[309972715,1704244256164,-500.0,0.00032876,2]
[309972716,1704244256174,-500.0,0.00032876,2]
[309972717,1704244256183,-500.0,0.00032876,2]
[309972718,1704244256192,-500.0,0.00032876,2]
[309972719,1704244256202,-500.0,0.00032876,2]
[309972720,1704244256211,-500.0,0.00032876,2]
[309972721,1704244256221,-500.0,0.00032876,2]
[309972722,1704244256231,-500.0,0.00032876,2]
[309972723,1704244256241,-500.0,0.00032876,2]
[309972724,1704244256251,-500.0,0.00032876,2]
[309972725,1704244256261,-500.0,0.00032876,2]
[309972726,1704244256270,-500.0,0.00032876,2]
[309972727,1704244256280,-500.0,0.00032876,2]
[309972728,1704244256289,-500.0,0.00032876,2]
[309972729,1704244256299,-500.0,0.00032876,2]
[309972730,1704244256308,-500.0,0.00032876,2]
[309972731,1704244256318,-500.0,0.00032876,2]
[309972732,1704244256327,-595.88,0.00032876,2]
[309972733,1704244256337,-500.0,0.00032876,2]
[309972734,1704244256347,-500.0,0.00032876,2]
[309972735,1704244256356,-500.0,0.00032876,2]
[309972736,1704244256366,-500.0,0.00032876,2]
[309972737,1704244256375,-500.0,0.00032876,2]
[309972738,1704244256384,-500.0,0.00032876,2]
[309972739,1704244256394,-500.0,0.00032876,2]
[309972740,1704244256403,-500.0,0.00032876,2]
[309972741,1704244256412,-570.73067478,0.00032876,2]
[309972742,1704244256422,-500.0,0.00032876,2]
[309972743,1704244256431,-500.0,0.00032876,2]
[309972744,1704244256441,-500.0,0.00032876,2]
[309972745,1704244256450,-500.0,0.00032876,2]
[309972746,1704244256459,-500.0,0.00032876,2]
[309972747,1704244256468,-500.0,0.00032876,2]
[309972748,1704244256478,-500.0,0.00032876,2]
[309972749,1704244256489,-542.87047753,0.00032876,2]
[309972750,1704244256498,-500.0,0.00032876,2]
[309972751,1704244256508,-500.0,0.00032876,2]
[309972752,1704244256517,-177.2686173,0.00032876,2]
[309972753,1704244256526,-557.94738087,0.00032876,2]
[309972754,1704244256535,-500.0,0.00032876,2]
[309972755,1704244256545,-500.0,0.00032876,2]
[309972756,1704244256554,-500.0,0.00032876,2]
[309972757,1704244256564,-500.0,0.00032876,2]
[309972758,1704244256575,-386.48,0.00032876,2]
[309972759,1704244256586,-500.0,0.00032876,2]
[309972760,1704244256597,-500.0,0.00032876,2]
[309972761,1704244256607,-429.29,0.00032876,2]
[309972762,1704244256616,-500.0,0.00032876,2]
[309972763,1704244256626,-500.0,0.00032876,2]
[309972764,1704244256636,-500.0,0.00032876,2]
[309972765,1704244256645,-500.0,0.00032876,2]
[309972766,1704244256656,-252.22,0.00032876,2]
[309972767,1704244256665,-500.0,0.00032876,2]
[309972768,1704244256675,-500.0,0.00032876,2]
[309972769,1704244256684,-500.0,0.00032876,2]
[309972770,1704244256695,-500.0,0.00032876,2]
[309972771,1704244256704,-500.0,0.00032876,2]
[309972772,1704244256714,-500.0,0.00032876,2]
[309972773,1704244256724,-500.0,0.00032876,2]
[309972774,1704244256735,-500.0,0.00032876,2]
[309972775,1704244256744,-500.0,0.00032876,2]
[309972776,1704244256754,-500.0,0.00032876,2]
[309972777,1704244256764,-500.0,0.00032876,2]
[309972778,1704244256773,-500.0,0.00032876,2]
[309972779,1704244256782,-345.63388697,0.00032876,2]
[309972780,1704244256791,-500.0,0.00032876,2]
[309972781,1704244256801,-500.0,0.00032876,2]
[309972782,1704244256811,-413.19940919,0.00032876,2]
[309972783,1704244256820,-500.0,0.00032876,2]
[309972784,1704244256830,-671.55,0.00032876,2]
[309972785,1704244256840,-671.55,0.00032876,2]
[309972786,1704244256850,-500.0,0.00032876,2]
[309972787,1704244256860,-671.55,0.00032876,2]
[309972788,1704244256869,-500.0,0.00032876,2]
[309972789,1704244256880,-671.55,0.00032876,2]
[309972790,1704244256889,-500.0,0.00032876,2]
[309972791,1704244256899,-500.0,0.00032876,2]
[309972792,1704244256908,-671.55,0.00032876,2]
[309972793,1704244256917,-500.0,0.00032876,2]
[309972794,1704244256927,-500.0,0.00032876,2]
[309972795,1704244256936,-500.0,0.00032876,2]
[309972796,1704244256946,-500.0,0.00032876,2]
[309972797,1704244256957,-500.0,0.00032876,2]
[309972798,1704244256967,-583.08,0.00032876,2]
[309972799,1704244256977,-500.0,0.00032876,2]
[309972800,1704244256988,-500.0,0.00032876,2]
[309972801,1704244256998,-1387.37,0.00032877,7]
[309972802,1704244257008,-281.81,0.00032877,15]
[309972803,1704244257017,-393.62184176,0.00032877,2]
[309972804,1704244257027,-2000.0,0.000329,2]
[309972805,1704244257036,-271.36,0.000329,2]
[309972806,1704244257046,-342.0,0.000329,2]
[309972807,1704244257056,-158.34,0.00033106,2]
[309972808,1704244257065,-153.07,0.00033125,2]
[309972809,1704244257075,-154.21513375,0.00033151,5]
[309972810,1704244257084,-151.67582679,0.00033173,2]
[309972811,1704244257093,-1238.20914196,0.0003324,14]
[309972812,1704244257103,-396.62,0.0003324,2]
[309972813,1704244257113,-208.0,0.0003324,2]
[309972814,1704244257122,-1000.0,0.00033392,2]
[309972815,1704244257131,-154.21513375,0.00033526,5]
[309972816,1704244257141,-151.67582679,0.0003357,2]
[309972817,1704244257150,-246.504974,0.00033582,2]
[309972818,1704244257160,-153.84,0.00033657,2]
[309972819,1704244257169,-500.0,0.00033722,2]
[309972820,1704244257178,-500.0,0.00033722,2]
[309972821,1704244257187,-9604.33331486,0.00033723,2]
[309972822,1704244257197,-159.08,0.00033736,2]
[309972823,1704244257206,-545.0745116,0.000338,2]
[309972824,1704244257216,-159.16012988,0.00033899,2]
[309972825,1704244257225,-500.0,0.00033899,2]
[309972826,1704244257235,-2387.77,0.00033899,2]
[309972827,1704244257244,-500.0,0.00033899,2]
[309972828,1704244257253,-500.0,0.00033899,2]
[309972829,1704244257263,-500.0,0.00033899,2]
[309972830,1704244257272,-500.0,0.00033899,2]
[309972831,1704244257282,-500.0,0.00033899,2]
[309972832,1704244257292,-500.0,0.00033899,2]
[309972833,1704244257301,-336.39,0.00033899,2]
[309972834,1704244257311,-690.29,0.00033899,2]
[309972835,1704244257320,-500.0,0.00033899,2]
[309972836,1704244257330,-500.0,0.00033899,2]
[309972837,1704244257339,-78943.4819442,0.000339,2]
[309972838,1704244257348,-2000.0,0.000339,2]
[309972839,1704244257358,-154.21513375,0.00033901,6]
[309972840,1704244257367,-204.67,0.00033906,2]
[309972841,1704244257377,-151.67582679,0.00033966,2]
[309972842,1704244257388,-208.0,0.0003398,2]
[309972843,1704244257397,-1000.0,0.00034,4]
[309972844,1704244257406,-208.0,0.00034065,18]
[309972845,1704244257416,-3180.66829188,0.00034078,2]
[309972846,1704244257425,-619.53169567,0.00034078,2]
[309972847,1704244257435,-396.62,0.00034218,2]
[309972848,1704244257444,-154.21513375,0.00034275,6]
[309972849,1704244257457,-300.0,0.00034292,2]
[309972850,1704244257466,-409.98,0.00034294,2]
[309972851,1704244257475,-151.67582679,0.00034363,2]
[309972852,1704244257486,-500.0,0.00034451,2]
[309972853,1704244257495,-500.0,0.00034451,2]
[309972854,1704244257504,-586.57,0.00034451,2]
[309972855,1704244257514,-500.0,0.00034451,2]
[309972856,1704244257523,-500.0,0.00034451,2]
[309972857,1704244257533,-500.0,0.00034451,2]
[309972858,1704244257543,-744.22,0.00034451,2]
[309972859,1704244257552,-500.0,0.00034451,2]
[309972860,1704244257561,-500.0,0.00034451,2]
[309972861,1704244257571,-500.0,0.00034451,2]
[309972862,1704244257581,-500.0,0.00034451,2]
[309972863,1704244257590,-1068.03,0.00034451,2]
[309972864,1704244257600,-692.16,0.00034451,2]
[309972865,1704244257609,-637.0,0.00034451,2]
[309972866,1704244257619,-825.8,0.00034451,2]
[309972867,1704244257629,-500.0,0.00034451,2]
[309972868,1704244257686,-500.0,0.00034451,2]
[309972869,1704244257696,-500.0,0.00034451,2]
[309972870,1704244257706,-500.0,0.00034451,2]
[309972871,1704244257716,-500.0,0.00034451,2]
[309972872,1704244257725,-500.0,0.00034451,2]
[309972873,1704244257736,-500.0,0.00034451,2]
[309972874,1704244257748,-810.56,0.00034451,2]
[309972875,1704244257757,-500.0,0.00034451,2]
[309972876,1704244257766,-500.0,0.00034451,2]
[309972877,1704244257775,-500.0,0.00034451,2]
[309972878,1704244257784,-500.0,0.00034451,2]
[309972879,1704244257793,-500.0,0.00034451,2]
[309972880,1704244257802,-500.0,0.00034451,2]
[309972881,1704244257812,-500.0,0.00034451,2]
[309972882,1704244257821,-500.0,0.00034451,2]
[309972883,1704244257831,-500.0,0.00034451,2]
[309972884,1704244257841,-500.0,0.00034451,2]
[309972885,1704244257850,-460.59,0.00034451,2]
[309972886,1704244257860,-500.0,0.00034451,2]
[309972887,1704244257869,-500.0,0.00034451,2]
[309972888,1704244257879,-500.0,0.00034451,2]
[309972889,1704244257889,-152.37,0.00034451,2]
[309972890,1704244257898,-500.0,0.00034451,2]
[309972891,1704244257908,-500.0,0.00034451,2]
[309972892,1704244257918,-500.0,0.00034451,2]
[309972893,1704244257927,-500.0,0.00034451,2]
[309972894,1704244257937,-500.0,0.00034451,2]
[309972895,1704244257946,-671.55,0.00034451,2]
[309972896,1704244257955,-150.0,0.00034452,2]
[309972897,1704244257965,-150.0,0.00034452,2]
[309972898,1704244257974,-520.27,0.00034452,2]
[309972899,1704244257984,-406.92,0.00034452,2]
[309972900,1704244257994,-150.0,0.00034452,2]
[309972901,1704244258004,-406.92,0.00034452,2]
[309972902,1704244258014,-150.0,0.00034452,2]
[309972903,1704244258024,-313.15,0.00034452,2]
[309972904,1704244258033,-150.0,0.00034452,2]
[309972905,1704244258042,-150.0,0.00034452,2]
[309972906,1704244258051,-150.0,0.00034452,2]
[309972907,1704244258060,-406.92,0.00034452,2]
[309972908,1704244258070,-150.0,0.00034452,2]
[309972909,1704244258079,-150.0,0.00034452,2]
[309972910,1704244258088,-520.27,0.00034452,2]
[309972911,1704244258098,-520.27,0.00034452,2]
[309972912,1704244258107,-150.0,0.00034452,2]
[309972913,1704244258117,-150.0,0.00034452,2]
[309972914,1704244258126,-520.27,0.00034452,2]
[309972915,1704244258135,-150.0,0.00034452,2]
[309972916,1704244258144,-406.92,0.00034452,2]
[309972917,1704244258154,-520.27,0.00034452,2]
[309972918,1704244258163,-810.3,0.00034452,2]
[309972919,1704244258173,-333.3333,0.00034468,2]
[309972920,1704244258183,-333.3333,0.00034478,2]
[309972921,1704244258192,-222.2222,0.00034488,2]
[309972922,1704244258201,-222.2222,0.00034498,2]
[309972923,1704244258211,-150.0,0.000345,2]
[309972924,1704244258221,-524.539002,0.0003452,2]
[309972925,1704244258230,-2578.708993,0.0003452,2]
[309972926,1704244258240,-1573.617009,0.0003452,2]
[309972927,1704244258249,-7736.126979,0.0003452,2]
[309972928,1704244258258,-333.3333,0.00034558,2]
[309972929,1704244258267,-333.3333,0.00034568,2]
[309972930,1704244258277,-222.2222,0.00034578,2]
[309972931,1704244258286,-222.2222,0.00034588,2]
[309972932,1704244258295,-500.0,0.00034597,2]
[309972933,1704244258305,-629.6,0.00034597,2]
[309972934,1704244258314,-500.0,0.00034597,2]
[309972935,1704244258323,-500.0,0.00034597,2]
[309972936,1704244258333,-500.0,0.00034597,2]
[309972937,1704244258342,-639.86,0.00034597,2]
[309972938,1704244258352,-500.0,0.00034597,2]
[309972939,1704244258361,-500.0,0.00034597,2]
[309972940,1704244258370,-613.83,0.00034597,2]
[309972941,1704244258379,-500.0,0.00034597,2]
[309972942,1704244258389,-500.0,0.00034597,2]
[309972943,1704244258398,-500.0,0.00034597,2]
[309972944,1704244258408,-500.0,0.00034597,2]
[309972945,1704244258417,-378.3,0.00034597,2]
[309972946,1704244258426,-222.2222,0.00034598,2]
[309972947,1704244258436,-1000.0,0.00034599,7]
[309972948,1704244258445,-150.0,0.00034604,2]
[309972949,1704244258454,-150.0,0.00034636,2]
[309972950,1704244258463,-153.84,0.00034647,2]
[309972951,1704244258472,-154.21513375,0.0003465,7]
[309972952,1704244258482,-333.3333,0.00034658,2]
[309972953,1704244258492,-333.3333,0.00034668,2]
[309972954,1704244258501,-178.56693,0.0003467,2]
[309972955,1704244258510,-222.2222,0.00034678,2]
[309972956,1704244258519,-222.2222,0.00034688,2]
[309972957,1704244258529,-222.2222,0.00034698,2]
[309972958,1704244258538,-185.47276118,0.00034698,2]
[309972959,1704244258547,-208.0,0.0003472,2]
[309972960,1704244258556,-723.0486831,0.00034726,2]
[309972961,1704244258565,-333.3333,0.00034758,2]
[309972962,1704244258574,-151.67582679,0.0003476,2]
[309972963,1704244258584,-333.3333,0.00034768,2]
[309972964,1704244258593,-222.2222,0.00034778,2]
[309972965,1704244258602,-150.0,0.00034785,2]
[309972966,1704244258611,-222.2222,0.00034788,2]
[309972967,1704244258620,-500.0,0.00034793,2]
[309972968,1704244258630,-500.0,0.00034793,2]
[309972969,1704244258639,-358.29,0.00034793,2]
[309972970,1704244258649,-263.61,0.00034793,2]
[309972971,1704244258658,-531.27,0.00034793,2]
[309972972,1704244258667,-500.0,0.00034793,2]
[309972973,1704244258677,-500.0,0.00034793,2]
[309972974,1704244258687,-175.48,0.00034793,2]
[309972975,1704244258697,-500.0,0.00034793,2]
[309972976,1704244258706,-500.0,0.00034793,2]
[309972977,1704244258716,-500.0,0.00034793,2]
[309972978,1704244258726,-500.0,0.00034793,2]
[309972979,1704244258736,-1544.27,0.00034793,2]
[309972980,1704244258746,-500.0,0.00034793,2]
[309972981,1704244258757,-500.0,0.00034793,2]
[309972982,1704244258769,-501.3,0.00034793,2]
[309972983,1704244258779,-786.808504,0.00034794,2]
[309972984,1704244258789,-3868.063489,0.00034794,2]
[309972985,1704244258799,-2360.425513,0.00034794,2]
[309972986,1704244258808,-11604.190468,0.00034794,2]
[309972987,1704244258818,-222.2222,0.00034798,2]
[309972988,1704244258827,-282.50668455,0.00034799,2]
[309972989,1704244258837,-545.0745116,0.000348,2]
[309972990,1704244258846,-201.44369438,0.000348,2]
[309972991,1704244258855,-150.0,0.00034806,2]
[309972992,1704244258865,-150.0,0.00034815,2]
[309972993,1704244258874,-150.0,0.00034834,2]
[309972994,1704244258883,-150.0,0.00034848,2]
[309972995,1704244258893,-333.3333,0.00034858,2]
[309972996,1704244258902,-333.3333,0.00034868,2]
[309972997,1704244258912,-150.0,0.00034877,2]
[309972998,1704244258921,-222.2222,0.00034878,2]
[309972999,1704244258931,-222.2222,0.00034888,2]
[309973000,1704244258940,-150.0,0.00034892,2]
[309973001,1704244258950,-151.0,0.00034892,7]
[309973002,1704244258959,-150.0,0.00034896,2]
[309973003,1704244258968,-222.2222,0.00034898,2]
[309973004,1704244258977,-3166.37108637,0.00034899,2]
[309973005,1704244258988,-500.0,0.00034899,2]
[309973006,1704244258997,-500.0,0.00034899,2]
[309973007,1704244259006,-500.0,0.00034899,2]
[309973008,1704244259014,-500.0,0.00034899,2]
[309973009,1704244259024,-2387.77,0.00034899,2]
[309973010,1704244259033,-2387.77,0.00034899,2]
[309973011,1704244259042,-500.0,0.00034899,2]
[309973012,1704244259051,-500.0,0.00034899,2]
[309973013,1704244259061,-500.0,0.00034899,2]
[309973014,1704244259071,-250.76,0.00034899,2]
[309973015,1704244259080,-396.05,0.00034899,2]
[309973016,1704244259089,-500.0,0.00034899,2]
[309973017,1704244259098,-500.0,0.00034899,2]
[309973018,1704244259107,-500.0,0.00034899,2]
[309973019,1704244259117,-500.0,0.00034899,2]
[309973020,1704244259126,-586.57,0.00034899,2]
[309973021,1704244259135,-500.0,0.00034899,2]
[309973022,1704244259145,-501.26,0.00034899,2]
[309973023,1704244259154,-500.0,0.00034899,2]
[309973024,1704244259163,-531.27,0.00034899,2]
[309973025,1704244259173,-744.22,0.00034899,2]
[309973026,1704244259182,-500.0,0.00034899,2]
[309973027,1704244259191,-500.0,0.00034899,2]
[309973028,1704244259200,-500.0,0.00034899,2]
[309973029,1704244259209,-391.74,0.00034899,2]
[309973030,1704244259218,-500.0,0.00034899,2]
[309973031,1704244259227,-500.0,0.00034899,2]
[309973032,1704244259237,-1068.03,0.00034899,2]
[309973033,1704244259246,-548.88,0.00034899,2]
[309973034,1704244259256,-692.16,0.00034899,2]
[309973035,1704244259265,-500.0,0.00034899,2]
[309973036,1704244259274,-500.0,0.00034899,2]
[309973037,1704244259283,-291.26,0.00034899,2]
[309973038,1704244259292,-825.8,0.00034899,2]
[309973039,1704244259301,-500.0,0.00034899,2]
[309973040,1704244259310,-500.0,0.00034899,2]
[309973041,1704244259319,-500.0,0.00034899,2]
[309973042,1704244259328,-500.0,0.00034899,2]
[309973043,1704244259337,-500.0,0.00034899,2]
[309973044,1704244259347,-500.0,0.00034899,2]
[309973045,1704244259355,-629.6,0.00034899,2]
[309973046,1704244259364,-500.0,0.00034899,2]
[309973047,1704244259373,-402.01,0.00034899,2]
[309973048,1704244259382,-500.0,0.00034899,2]
[309973049,1704244259391,-582.17,0.00034899,2]
[309973050,1704244259400,-500.0,0.00034899,2]
[309973051,1704244259409,-810.56,0.00034899,2]
[309973052,1704244259418,-500.0,0.00034899,2]
[309973053,1704244259427,-690.29,0.00034899,2]
[309973054,1704244259436,-690.29,0.00034899,2]
[309973055,1704244259445,-500.0,0.00034899,2]
[309973056,1704244259456,-500.0,0.00034899,2]
[309973057,1704244259465,-500.0,0.00034899,2]
[309973058,1704244259474,-500.0,0.00034899,2]
[309973059,1704244259483,-1544.27,0.00034899,2]
[309973060,1704244259494,-500.0,0.00034899,2]
[309973061,1704244259503,-500.0,0.00034899,2]
[309973062,1704244259513,-500.0,0.00034899,2]
[309973063,1704244259523,-518.98,0.00034899,2]
[309973064,1704244259532,-168.99,0.00034899,2]
[309973065,1704244259542,-500.0,0.00034899,2]
[309973066,1704244259553,-500.0,0.00034899,2]
[309973067,1704244259562,-500.0,0.00034899,2]
[309973068,1704244259571,-500.0,0.00034899,2]
[309973069,1704244259581,-160.42,0.00034899,2]
[309973070,1704244259590,-500.0,0.00034899,2]
[309973071,1704244259599,-500.0,0.00034899,2]
[309973072,1704244259609,-501.3,0.00034899,2]
[309973073,1704244259619,-500.0,0.00034899,2]
[309973074,1704244259629,-500.0,0.00034899,2]
[309973075,1704244259639,-500.0,0.00034899,2]
[309973076,1704244259649,-500.0,0.00034899,2]
[309973077,1704244259659,-500.0,0.00034899,2]
[309973078,1704244259669,-500.0,0.00034899,2]
[309973079,1704244259680,-500.0,0.00034899,2]
[309973080,1704244259690,-500.0,0.00034899,2]
[309973081,1704244259701,-500.0,0.00034899,2]
[309973082,1704244259710,-188.49,0.00034899,2]
[309973083,1704244259720,-500.0,0.00034899,2]
[309973084,1704244259730,-500.0,0.00034899,2]
[309973085,1704244259740,-671.55,0.00034899,2]
[309973086,1704244259750,-2604.57203211,0.000349,3]
[309973087,1704244259770,-612.52461705,0.000349,3]
[309973088,1704244259782,-416.6279211,0.000349,3]
[309973089,1704244259794,-2124.39544252,0.000349,3]
[309973090,1704244259806,-453.59632671,0.000349,3]
[309973164,1704245431670,-250.0,0.00027,3]
[309973166,1704245431680,-729.27,0.00027226,2]
[309973167,1704245431690,-719.34,0.00027305,2]
[309973168,1704245431700,-714.89,0.00027412,2]
[309973169,1704245431709,-148.01,0.00027552,2]
[309973170,1704245431720,-584.81,0.00027552,2]
[309973171,1704245431729,-161.80506022,0.00027646,2]
[309973172,1704245431738,-710.4,0.00027746,2]
[309973173,1704245431748,-1460.69526453,0.000278,2]
[309973174,1704245431760,-302.30473547,0.000278,2]
[309973175,1704245431769,-555.28892274,0.000278,2]
[309973176,1704245431781,-1039.18709682,0.000278,2]
[309973177,1704245431793,-6649.51046331,0.000278,2]
[309973178,1704245431813,-264.55,0.000278,2]
[309973179,1704245431837,-3225.18862013,0.000278,2]
[309973180,1704245431867,-3343.15854167,0.000278,2]
[309973181,1704245431880,-1297.40718815,0.000278,2]
[309973182,1704245431899,-333.231228,0.000278,2]
[309973183,1704245431912,-894.47793918,0.000278,2]
[309973184,1704245431921,-10.72206082,0.00028005,2]
[309973185,1704245431941,-711.19793918,0.00028005,2]
[309973186,1704245431950,-719.35,0.00028354,2]
[309973187,1704245431960,-733.33,0.00028815,2]
[309973188,1704245431969,-300.0,0.00029,3]
[309973189,1704245431979,-327.98,0.00029166,2]
[309973190,1704245431988,-200.21183614,0.00029375,2]
[309973191,1704245432001,-510.76816386,0.00029375,2]
[309973192,1704245432013,-730.13444808,0.00029494,2]
[309973193,1704245432022,-155.0,0.00030063,2]
[309973194,1704245432032,-161.80506022,0.00030064,2]
[309973195,1704245432042,-721.34,0.00030355,2]
[309973196,1704245432052,-510.48705619,0.00031029,2]
[309973197,1704245432065,-447.775,0.00031029,2]
[309973244,1704245437571,-1668.50509096,0.00026999,2]
[309973246,1704245437581,-5835.78499214,0.00031029,2]
[309973253,1704245437744,-1183.85,0.00031029,2]
[309973254,1704245438059,-848.26710872,0.00031029,2]
[309973264,1704245440211,-903.24447607,0.00031029,2]
[309973273,1704245442818,-14170.59136688,0.00031029,2]
[309973274,1704245442827,-2157.51,0.00031039,2]
[309973275,1704245442836,-252.01,0.00031091,10]
[309973276,1704245442845,-228.38,0.00031122,2]
[309973277,1704245442855,-1000.0,0.00031122,2]
[309973278,1704245442863,-150.0,0.00031347,2]
[309973279,1704245442873,-159.08,0.0003137,2]
[309973280,1704245442882,-327.98,0.0003143,2]
[309973281,1704245442891,-2603.61591865,0.00032262,7]
[309973282,1704245442900,-11401.73019127,0.00032262,7]
[309973283,1704245442909,-3079.20184098,0.00032262,7]
[309973284,1704245442918,-9711.97413413,0.00032262,7]
[309973285,1704245442929,-1053.40384729,0.00032262,7]
[309973286,1704245442951,-817.55331788,0.00032262,7]
[309973336,1704245897143,900.0,0.000229,2]
[309973337,1704245897170,73.7,0.000229,2]
[309973338,1704246032500,301.46721984,0.00022984,30]
[309973339,1704246060025,1688.0,0.00022999,2]
[309973340,1704246120491,538.54691563,0.00022999,2]
[309973341,1704246120514,1149.45308437,0.00022999,2]
[309973381,1704246631819,-250.0,0.00027,3]
[309973382,1704246631828,-173.75014791,0.0002799,2]
[309973383,1704246631837,-3922.10081628,0.00028089,2]
[309973384,1704246631847,-720.66,0.0002809,2]
[309973385,1704246631857,-164.79921138,0.00028096,2]
[309973386,1704246631869,-336.4822786,0.00028096,2]
[309973387,1704246631881,-223.83851002,0.00028096,2]
[309973388,1704246631890,-722.49,0.00028096,2]
[309973389,1704246631900,-65.90497764,0.00028097,2]
[309973390,1704246631931,-543.30887796,0.00028097,2]
[309973391,1704246631990,-111.6361444,0.00028097,2]
[309973392,1704246632000,-715.35,0.00028097,2]
[309973393,1704246632009,-721.22,0.00028097,2]
[309973394,1704246632019,-730.12,0.00028098,2]
[309973395,1704246632029,-714.55,0.00028098,2]
[309973396,1704246632039,-712.1,0.00028099,2]
[309973397,1704246632049,-732.65,0.00028099,2]
[309973398,1704246632059,-731.81,0.00028099,2]
[309973399,1704246632070,-2757.98926316,0.000281,2]
[309973400,1704246632082,-1103.90650941,0.000281,2]
[309973401,1704246632094,-310.0,0.000281,2]
[309973402,1704246632106,-3407.02625035,0.000281,2]
[309973403,1704246632118,-2008.57023003,0.000281,2]
[309973454,1704246637884,-5515.16790321,0.000281,2]
[309973455,1704246637941,-1244.97396367,0.000281,2]
[309973456,1704246638829,-2015.36588017,0.000281,2]
[309973457,1704246638844,-335.35,0.00028406,2]
[309973458,1704246638853,-499.99,0.00028406,2]
[309973459,1704246638863,-300.0,0.00029,3]
[309973460,1704246638873,-23900.0,0.00029564,2]
[309973461,1704246638883,-172.55,0.00029592,2]
[309973462,1704246638893,-250.0,0.00029621,2]
[309973463,1704246638903,-200.0,0.00029731,2]
[309973464,1704246638912,-367.04,0.00029836,2]
[309973465,1704246638922,-294.53,0.00029841,2]
[309973466,1704246638932,-250.0,0.00029922,2]
[309973467,1704246638941,-237.97,0.00030195,2]
[309973468,1704246638951,-522.41,0.0003031,2]
[309973469,1704246638961,-1139.438,0.0003031,2]
[309973470,1704246638970,-164.993,0.0003031,2]
[309973471,1704246638979,-357.547,0.0003031,2]
[309973472,1704246638989,-153.71,0.00030324,2]
[309973473,1704246638998,-1797.92,0.00030341,2]
[309973474,1704246639007,-150.0,0.00030466,2]
[309973475,1704246639017,-335.35,0.0003067,2]
[309973476,1704246639028,-800.0,0.00030909,2]
[309973477,1704246639039,-350.0,0.00031,3]
[309973479,1704246639048,-150.0,0.00031089,2]
[309973480,1704246639058,-237.97,0.00031173,2]
[309973482,1704246639068,-160.39455,0.0003143,2]
[309973484,1704246639077,-746.66910475,0.00031625,2]
[309973486,1704246639087,-994.3276,0.0003186,2]
[309973488,1704246639097,-2478.4837,0.0003186,2]
[309973490,1704246639106,-39314.93525074,0.0003196,7]
[309973494,1704246639133,-33380.68349639,0.0003196,7]
[309973536,1704246640521,-1698.52317393,0.0003196,7]
[309973539,1704246642780,-12739.70857646,0.0003196,7]
[309973540,1704246642794,-347.84367365,0.0003196,7]
[309973542,1704246642845,-1962.3591,0.0003196,7]
[309973543,1704246642858,-22477.72477432,0.0003196,7]